Cogmind - Beta 12 @@@ ROGUE MODE // 2023.03.23 @ 06:19:27 Player: maxwell Result: Destroyed by DAS Turret with DAS Cannon Performance ------------- Evolutions (1) 500 Regions Visited (5) 1000 Robots Destroyed (37) 185 Value Destroyed (989) 989 Prototype IDs (1) 20 Alien Tech Used (0) 0 Bonus (-611) -611 TOTAL SCORE: 2083 Bonus ------- High Alert Combat Kills 11 Follower Combat Kills 204 Friendly Fire -826 Cogmind --------- Core Integrity 0/400 Matter 235/300 Energy 100/100 System Corruption 4% Temperature Cool (0) Movement Core (100) Ox1 Location -9/Exiles Parts ------- > --- POWER (1) -------- (None) > --- PROPULSION (3) --- (None) > --- UTILITY (2) ------ (None) > --- WEAPON (3) ------- Improved Grenade Launcher > --- INVENTORY (5) ---- Medium Armor Plating Gauss Cannon Peak State ------------ > --- POWER ------------ Reinforced Ion Engine > --- PROPULSION ------- Light Treads Improved Treads Advanced Myomer Leg > --- UTILITY ---------- Medium Armor Plating Medium Insulated Plating > --- WEAPON ----------- Light Assault Rifle Gauss Cannon Improved Grenade Launcher > --- INVENTORY -------- Medium Armor Plating Improved Grenade Launcher Improved Grenade Launcher [Rating: 27] Favorites ----------- Power Reinforced Ion Engine Engine Reinforced Ion Engine Propulsion Light Treads Treads Light Treads Leg Advanced Myomer Leg Utility Huge Storage Unit Device Structural Scanner Storage Huge Storage Unit Hackware Hacking Suite Protection Medium Armor Plating Weapon Heavy Assault Rifle Energy Gun Medium Laser Ballistic Gun Heavy Assault Rifle Ballistic Cannon Gauss Cannon Launcher Improved Grenade Launcher Impact Weapon Flail Build | -11 -10 -10 -9 -9 -9 ------- Run | Jun Mat Min Mat Min Exi Slots Evolved 2 | . . . 2 . . Power . | . . . . . . Propulsion 1 | . . . 1 . . Utility . | . . . . . . Weapon 1 | . . . 1 . . Parts Attached 50 | 6 13 . 8 4 19 Power 4 | 1 1 . 1 1 . Engine 4 | 1 1 . 1 1 . Core . | . . . . . . Reactor . | . . . . . . Propulsion 12 | 2 3 . 3 . 4 Treads 11 | 2 3 . 3 . 3 Leg 1 | . . . . . 1 Wheel . | . . . . . . Hover . | . . . . . . Flight . | . . . . . . Utility 14 | 1 6 . 3 1 3 Device 3 | . 2 . . . 1 Storage 4 | 1 2 . 1 . . Processor . | . . . . . . Hackware 1 | . . . 1 . . Protection 6 | . 2 . 1 1 2 Artifact . | . . . . . . Weapon 20 | 2 3 . 1 2 12 Energy Gun 3 | 2 1 . . . . Energy Cannon . | . . . . . . Ballistic Gun 10 | . 2 . 1 1 6 Ballistic Cannon 1 | . . . . . 1 Launcher 5 | . . . . . 5 Special Weapon . | . . . . . . Impact Weapon 1 | . . . . 1 . Slashing Weapon . | . . . . . . Piercing Weapon . | . . . . . . Special Melee Weapon . | . . . . . . Unidentified Prototypes 1 | . . . . . 1 Parts Lost 19 | . 3 . . 1 15 Power 2 | . 1 . . . 1 Propulsion 7 | . 1 . . . 6 Utility 2 | . . . . . 2 Weapon 8 | . 1 . . 1 6 Highest Loss Streak 8 | . 2 . . 1 8 To Critical Strikes 7 | . . . . . 7 Average Slot Usage (%) 96 | . 98 100 96 100 83 Engine 11 | . 14 14 11 11 10 Treads 30 | . 26 28 29 33 30 Storage 11 | . 14 14 11 11 10 Hackware 3 | . . . 3 8 . Protection 7 | . 11 14 7 2 11 Energy Gun 3 | . 19 . . . . Ballistic Gun 24 | . 7 28 33 32 8 Impact Weapon 1 | . . . . . 7 Naked Turns . | . . . . . . Heaviest Build 106 | 13 32 30 106 106 106 Greatest Support 63 | 40 40 40 60 60 63 Greatest Overweight (x) 2 | . 1 . 2 1 2 Average Overweight (x) . | . . . . 1 1 Largest Inventory Capacity 25 | 8 15 15 25 25 25 Average Capacity 20 | 7 13 15 22 25 24 Most Carried 25 | 2 12 12 22 25 25 Average Carried 18 | . 6 12 17 24 22 Final Capacity 25 | 8 15 15 25 25 5 Final Carried 25 | 2 12 12 22 25 2 Class Distribution -------------------- 48% | Mutant 33% | Gunner 17% | Tank Dominant Class ---------------- Mutant | -10/Materials Mutant | -10/Mines Tank | -9/Materials Gunner | -9/Mines Mutant | -9/Exiles Resources | -11 -10 -10 -9 -9 -9 ----------- Run | Jun Mat Min Mat Min Exi Matter Collected 1739 | 114 497 30 302 347 449 Remotely . | . . . . . . Salvage Created 1520 | . 776 48 440 184 72 Parts 69 | . 34 3 25 7 . Haulers Intercepted 1 | . 1 . . . . Recyclers Shooed 8 | . 1 . 7 . . Parts Field Recycled . | . . . . . . Retrieved Matter . | . . . . . . Parts Self-Destructed . | . . . . . . Prevented . | . . . . . . Kills | -11 -10 -10 -9 -9 -9 ------- Run | Jun Mat Min Mat Min Exi Combat Hostiles Destroyed 37 | . 15 3 7 8 4 Guns 34 | . 15 3 7 8 1 AOE 3 | . . . . . 3 Classes Destroyed 12 | . 5 1 3 3 . Worker 2 | . . . 2 . . Builder 1 | . 1 . . . . Tunneler 1 | . . . . 1 . Hauler 1 | . 1 . . . . Recycler 1 | . . . 1 . . Operator 1 | . 1 . . . . Watcher 2 | . 2 . . . . Swarmer 4 | . . 3 1 . . Grunt 20 | . 15 . 4 1 . Brawler 1 | . . . . 1 . Sentry 2 | . . . 2 . . Assembled 13 | . . . . 6 7 Best Kill Streak 5 | . 5 3 3 5 3 Combat Bots Only 5 | . 5 3 3 5 3 Max Kills in Single Turn 4 | . 1 1 1 1 4 Gunslinging . | . . . . . . Exploded 3 | . . . . . 3 Melee . | . . . . . . Uniques/NPCs Destroyed 1 | . . . . . 1 8R-AWN (-9/Exiles) Combat | -11 -10 -10 -9 -9 -9 -------- Run | Jun Mat Min Mat Min Exi Damage Taken 3316 | . 694 64 532 385 1641 Core 545 | . 99 7 55 45 339 Absorbed by Shields . | . . . . . . Regen/Repaired (Parts) 346 | . 203 . 143 . . Core Remaining (%) 78 | 100 . 57 . . . Volleys Fired 162 | . 75 5 27 22 33 Largest 3 | . 2 2 3 3 3 Hottest 91 | . 90 46 69 69 91 Shots Fired 375 | . 144 10 75 65 81 Gun 352 | . 144 10 75 65 58 Cannon 14 | . . . . . 14 Launcher 9 | . . . . . 9 Special . | . . . . . . Kinetic 234 | . 12 10 75 65 72 Thermal 132 | . 132 . . . . Explosive 9 | . . . . . 9 Electromagnetic . | . . . . . . Robot Hit Streak 15 | . 14 2 9 7 15 Robot Miss Streak 8 | . 3 3 8 3 4 Penetration Max . | . . . . . . Secondary Targets 7 | . 3 1 2 1 . Max Gunslinging Chain 1 | . 1 1 1 1 . Shots Hit Robots 231 | . 104 3 38 37 49 Core Hits 107 | . 42 4 16 17 28 Critical Kills . | . . . . . . Critical Parts Destroyed 1 | . . . . . 1 Critical Strikes 9 | . 6 . . . 3 Burn 6 | . 6 . . . . Destroy 1 | . . . . . 1 Blast 2 | . . . . . 2 Melee Attacks 3 | . . . . 3 . Impact 3 | . . . . 3 . Slashing . | . . . . . . Piercing . | . . . . . . Sneak Attacks . | . . . . . . Combat Hostiles . | . . . . . . Follow-up Attacks . | . . . . . . Damage Inflicted 4040 | . 1325 78 621 652 1364 Guns 3069 | . 1320 74 612 580 483 Cannons 248 | . . . . . 248 Explosions 633 | . . . . . 633 Melee . | . . . . . . Ramming 90 | . 5 4 9 72 . Kinetic 2118 | . 121 74 612 580 731 Thermal 1199 | . 1199 . . . . Explosive 633 | . . . . . 633 Electromagnetic . | . . . . . . Impact . | . . . . . . Slashing . | . . . . . . Piercing . | . . . . . . Highest Corruption 4 | . . . . 4 4 Average Corruption 4 | . . . . 4 4 Corruption Purged . | . . . . . . Corruption Blocked . | . . . . . . Effects 70 | . . . . 53 17 Message Errors 24 | . . . . 17 7 Matter Fused 20 | . . . . 17 3 Heat Flow Errors 8 | . . . . 5 3 Energy Discharges 4 | . . . . 3 1 Parts Fused 1 | . . . . . 1 Data Loss (minor) 5 | . . . . 5 . Data Loss (major) 3 | . . . . 3 . Misfires 1 | . . . . 1 . Alerts 1 | . . . . . 1 Weapon Failures 3 | . . . . 2 1 Overload Shots . | . . . . . . Overflow Damage 39 | . . . . . 39 Projectiles . | . . . . . . Explosions 39 | . . . . . 39 Melee . | . . . . . . Knockbacks 4 | . . . . . 4 Impact . | . . . . . . Kinetic 4 | . . . . . 4 Secondary . | . . . . . . Self-Inflicted Damage . | . . . . . . Shots . | . . . . . . Rammed 11 | . 1 1 2 7 . Targets Rammed 11 | . 1 1 2 7 . Kicked . | . . . . . . Crushed . | . . . . . . Highest Temperature 351 | . 328 . 140 268 351 Average Temperature 101 | . 122 . 48 74 117 Received Heat Transfer 738 | . 381 . 267 90 . Effects 2 | . 2 . . . . Shutdowns 1 | . 1 . . . . Energy Bleed 1 | . 1 . . . . Siege Activations . | . . . . . . Robots Corrupted . | . . . . . . Combat Hostiles . | . . . . . . Parts Fried . | . . . . . . Impact Corruptions . | . . . . . . Robots Melted . | . . . . . . Combat Hostiles . | . . . . . . Parts Melted 11 | . 11 . . . . Heat Transferred 3492 | . 3492 . . . . Parts Sabotaged . | . . . . . . Parts Stolen . | . . . . . . Parts Stripped . | . . . . . . Power Chain Reactions . | . . . . . . Missiles Intercepted . | . . . . . . Alert | -11 -10 -10 -9 -9 -9 ------- Run | Jun Mat Min Mat Min Exi Peak Influence 410 | . 293 70 410 119 . Initial 52 | . . 52 . 42 . Average 70 | . 181 50 117 12 . Maximum Alert Level 2 | . 1 . 2 . . Low Security (%) 88 | 100 64 100 71 100 . Level 1 11 | . 35 . 25 . . Level 2 . | . . . 2 . . Level 3 . | . . . . . . Level 4 . | . . . . . . Level 5 . | . . . . . . High Security . | . . . . . . Max Security . | . . . . . . Squads Dispatched 10 | . 7 . 3 . . Investigation 8 | . 6 . 2 . . Extermination . | . . . . . . Reinforcement 2 | . 1 . 1 . . Assault . | . . . . . . Garrison . | . . . . . . Intercept . | . . . . . . Searches Triggered . | . . . . . . Construction Impeded . | . . . . . . Haulers Reinforced . | . . . . . . Active Scanning Responses . | . . . . . . Cargo Convoy Interrupts . | . . . . . . Stealth | -11 -10 -10 -9 -9 -9 --------- Run | Jun Mat Min Mat Min Exi Distress Signals 1 | . . . 1 . . Communications Jammed . | . . . . . . Distress Signals . | . . . . . . Times Spotted 71 | . 24 3 20 10 14 Peak Tracking Total 4 | . 4 3 3 4 3 Tactical Retreats 3 | . 1 . . . 2 Traps | -11 -10 -10 -9 -9 -9 ------- Run | Jun Mat Min Mat Min Exi Traps Triggered 6 | . 4 . 1 1 . Indirectly . | . . . . . . Trap Hack Attempts . | . . . . . . Triggered . | . . . . . . Disarmed . | . . . . . . Reprogrammed . | . . . . . . Reused . | . . . . . . Traps Extracted . | . . . . . . Installed . | . . . . . . Triggered . | . . . . . . Machines | -11 -10 -10 -9 -9 -9 ---------- Run | Jun Mat Min Mat Min Exi Machines Disabled 7 | . . . 2 . 5 Max in Single Turn 3 | . . . 1 . 3 Machines Repaired . | . . . . . . Machines Sabotaged . | . . . . . . Overloaded Fab Kills . | . . . . . . Hacking | -11 -10 -10 -9 -9 -9 --------- Run | Jun Mat Min Mat Min Exi Machines Accessed 16 | . 7 . 7 1 1 Terminals 9 | . 4 . 5 . . Fabricators . | . . . . . . Repair Stations 2 | . 1 . 1 . . Recycling Units 3 | . 2 . 1 . . Scanalyzers . | . . . . . . Garrison Access . | . . . . . . Total Hacks 46 | . 27 . 17 1 1 Successful 28 | . 16 . 10 1 1 Failed 18 | . 11 . 7 . . Catastrophic 1 | . . . 1 . . Database Lockouts . | . . . . . . Manual 29 | . 18 . 11 . . Terminals 27 | . 15 . 12 . . Fabricators . | . . . . . . Repair Stations 13 | . 9 . 4 . . Recycling Units 4 | . 3 . 1 . . Scanalyzers . | . . . . . . Garrison Access . | . . . . . . Terminal Hacks 10 | . 5 . 3 1 1 Record 1 | . . . . . 1 Part Schematic 1 | . 1 . . . . Robot Analysis 4 | . 3 . 1 . . Open Door 1 | . . . . 1 . Terminal Index 2 | . 1 . 1 . . Unreport Threat 1 | . . . 1 . . Fabricator Hacks . | . . . . . . Repair Station Hacks 11 | . 7 . 4 . . Scan Component 5 | . 3 . 2 . . Repair 5 | . 3 . 2 . . Refit 1 | . 1 . . . . Recycling Unit Hacks . | . . . . . . Scanalyzer . | . . . . . . Garrison Access Hacks . | . . . . . . Unauthorized Hacks 7 | . 4 . 3 . . Terminals 4 | . 2 . 2 . . Botnet 2 | . 1 . 1 . . Operators 2 | . 1 . 1 . . Fabricators . | . . . . . . Repair Stations . | . . . . . . Recycling Units 3 | . 2 . 1 . . Tunnel 3 | . 2 . 1 . . Scanalyzers . | . . . . . . Garrison Access . | . . . . . . Data Cores Recovered 1 | . . . 1 . . Used . | . . . . . . Hacking Detections 11 | . 5 . 6 . . Full Trace Events . | . . . . . . Feedback Events . | . . . . . . Feedback Blocked . | . . . . . . Robot Schematics Acquired . | . . . . . . Robots Built . | . . . . . . Authchips . | . . . . . . Time . | . . . . . . Total Robot Build Rating . | . . . . . . Part Schematics Acquired 1 | . 1 . . . . Parts Built . | . . . . . . Authchips . | . . . . . . Time . | . . . . . . Total Part Build Rating . | . . . . . . Parts Repaired 5 | . 3 . 2 . . Time 130 | . 78 . 52 . . Parts Recycled . | . . . . . . Recycled Matter . | . . . . . . Retrieved Matter . | . . . . . . Retrieved Components . | . . . . . . Parts Scanalyzed . | . . . . . . Part Schematics Acquired . | . . . . . . Parts Damaged . | . . . . . . Bothacking | -11 -10 -10 -9 -9 -9 ------------ Run | Jun Mat Min Mat Min Exi Used RIF Installer . | . . . . . . Robots Hacked . | . . . . . . Non-combat . | . . . . . . Combat . | . . . . . . Robot Hacks Applied . | . . . . . . Relay Couplers Released . | . . . . . . Fabnet Peak Effective % . | . . . . . . Robots Rewired . | . . . . . . Allies Hacked . | . . . . . . Hacks Repelled . | . . . . . . Allies | -11 -10 -10 -9 -9 -9 -------- Run | Jun Mat Min Mat Min Exi Total Allies 3 | . . 3 . . . Largest Group 3 | . . 3 3 2 . Highest-Rated Group 40 | . . 40 40 24 . Highest-Rated Ally 16 | . . 16 16 16 . Total Orders 2 | . . . . 2 . STAY 1 | . . . . 1 . FOLLOW 1 | . . . . 1 . Ally Attacks 71 | . . . 53 18 . Total Damage 710 | . . . 553 157 . Kills 15 | . . . 12 3 . Allies Corrupted 1 | . . . . 1 . Allies Melted . | . . . . . . Intel | -11 -10 -10 -9 -9 -9 ------- Run | Jun Mat Min Mat Min Exi Robot Analysis Total 4 | . 3 . 1 . . Derelict Logs Recovered 4 | . . 2 . 2 . Drone Launches . | . . . . . . Drone Recoveries . | . . . . . . Exploration | -11 -10 -10 -9 -9 -9 ------------- Run | Jun Mat Min Mat Min Exi Turns Passed 6750 | 65 1226 962 895 2676 926 Spaces Moved 2869 | 36 549 591 305 1062 326 Core 2 | 2 . . . . . Treads 2862 | 34 549 591 305 1062 321 Legs 5 | . . . . . 5 Wheels . | . . . . . . Hover . | . . . . . . Flight . | . . . . . . Fastest Speed 50 | 50 160 160 160 240 120 Average Speed 207 | 153 161 160 237 240 244 Slowest Speed 320 | 160 240 160 320 240 320 Overloaded Moves . | . . . . . . Propulsion Burnouts . | . . . . . . Robots Hopped . | . . . . . . Cave-ins Triggered . | . . . . . . Exploration Rate (%) 64 | 3 97 98 36 99 54 Regions Visited 5 Branch Regions 3 Pre-discovered Areas 6 | . 2 1 1 1 1 Known Exits Taken 1 | . . 1 . . . Unknown Exits Taken 4 | 1 1 . 1 1 . Scrap Searched 3 | . . 1 . 2 . Spaces Dug 3 | . . . . 3 . Terrain Destroyed 24 | . . . . 3 21 Melee 3 | . . . . 3 . Projectile 6 | . . . . . 6 AOE 15 | . . . . . 15 Terrain Rammed . | . . . . . . Walls Destroyed . | . . . . . . Machines Disabled . | . . . . . . Actions | -11 -10 -10 -9 -9 -9 --------- Run | Jun Mat Min Mat Min Exi Total 3315 | 43 743 597 417 1126 389 Wait 165 | . 87 1 55 22 . Move 2864 | 35 548 590 304 1061 326 Hop . | . . . . . . Pick Up 41 | 2 14 . 15 6 4 Fast Attach 18 | 6 5 . 4 . 3 Attach 17 | . 3 . 3 2 9 Detach . | . . . . . . Swap 15 | . 5 . 1 2 7 Drop 19 | . 5 . 6 1 7 Fire 162 | . 75 5 27 22 33 Melee 3 | . . . . 3 . Ram . | . . . . . . Kick . | . . . . . . Crush 11 | . 1 1 2 7 . Escape Stasis . | . . . . . . Rewire . | . . . . . . Trap . | . . . . . . Miscellaneous . | . . . . . . Route ------- -11/Junkyard -10/Materials (discovered 4 exits: *Mat x3 / [*Min]) -10/Mines (discovered 2 exits: *Mat x2) -9/Materials (discovered 2 exits: Mat / *Min) -9/Mines (discovered 3 exits: *Mat x2 / *Exi) -9/Exiles History --------- Turn | Location | Event 6 | -11/Junkyard | Discovered new exit (range 15) 66 | -11/Junkyard | Entered Materials 320 | -10/Materials | Discovered new exit (range 13) 325 | -10/Materials | Build established: Mutant 537 | -10/Materials | Discovered new exit (range 15) 793 | -10/Materials | Discovered new exit (range 16) 1016 | -10/Materials | Repaired Lgt. Armor Plating 1043 | -10/Materials | Repaired Lgt. Treads 1071 | -10/Materials | Repaired Lgt. Treads 1225 | -10/Materials | Discovered new exit (range 11) 1292 | -10/Materials | Entered Mines 1295 | -10/Mines | Learned location of Storage (-7) 1389 | -10/Mines | Met a Derelict bent on vengeance 1536 | -10/Mines | Learned location of 1 exit from Materials 1709 | -10/Mines | Discovered new exit (range 8) 1797 | -10/Mines | Identified exit to Materials 1960 | -10/Mines | Assisted by bots powering up and referring to "LRC-V3" 2254 | -10/Mines | Entered Materials 2254 | -9/Materials | Accompanied by 3 allies 2254 | -9/Materials | Evolved 2 slots: Propulsion x1, Weapon x1 2255 | -9/Materials | Identified exit to Materials 2560 | -9/Materials | Build established: Tank 2651 | -9/Materials | Discovered new exit (range 12) 2879 | -9/Materials | Repaired Lgt. Treads 2908 | -9/Materials | Repaired Lgt. Treads 3149 | -9/Materials | Entered Mines 3149 | -9/Mines | Accompanied by 2 allies 3176 | -9/Mines | Build established: Gunner 3193 | -9/Mines | Discovered exit to Materials (range 16) 3252 | -9/Mines | Met a Derelict who couldn't figure out how to use a Trap Extractor 3984 | -9/Mines | Assembled infested the area 3989 | -9/Mines | Assisted by a Guerilla fighting off Assembled 4882 | -9/Mines | Deemed a non-threat by the Exiles lab entrance 4885 | -9/Mines | Discovered new exit (range 5) 4928 | -9/Mines | Discovered exit to Materials (range 7) 5423 | -9/Mines | Build established: Tank 5825 | -9/Mines | Entered Exiles 5883 | -9/Exiles | Met 8R-AWN 5926 | -9/Exiles | Met EX-HEX 6010 | -9/Exiles | Build established: Mutant 6181 | -9/Exiles | Met EX-DEC 6219 | -9/Exiles | Learned location of Zion (-6) 6493 | -9/Exiles | Attacked by the Exiles 6576 | -9/Exiles | Core integrity fell below 50% 6597 | -9/Exiles | Destroyed 8R-AWN 6615 | -9/Exiles | Lost 7 parts (4n3w) 6748 | -9/Exiles | Core integrity fell below 20% 6751 | -9/Exiles | Destroyed by DAS Turret with DAS Cannon Last Messages --------------- 06641_ Acquired Flail. 06642_ Extracted 150 matter. 06648_ System corrupted: Heat flow error (+145). 06692_ DYPK#Q IBW7WEPN7VU7TI MNFWJCBYKNZ6AH SU 06716_ Dropped Huge Storage Unit. 06735_ Imp. Treads destroyed. 06737_ Imp. Grenade Launcher destroyed. 06737_ Med. Insulated Plating destroyed. 06739_ Knocked back. 06741_ Machine disabled. 06743_ Lgt. Assault Rifle destroyed. 06743_ Med. Armor Plating destroyed. 06745_ Knocked back. 06747_ Rnf. Ion Engine destroyed. 06747_ Knocked back. 06749_ Lgt. Treads destroyed. 06749_ Adv. Myomer Leg blasted off. 06749_ Knocked back. 06749_ System corrupted: Imp. Grenade Launcher failed to launch. 06751_ Imp. Grenade Launcher destroyed. Map ----- +----------------------------------------------------+ | ""?????????????" ""??????????? ??????????? | | #??????????????" ?????????? ??????????? | | #?????????????"" ???????????" ?????????? | | ##????????????"" "?????????#" ??????????? | | "#???????????? ""?????????#" ???????????? | | ###???????????" "?????????##" #???????????? | | ##??????????# #????????##"" #???????????? | | " ######???### ###?######"" #???????????? | | " """#####X# #"###""""""" ##??????????? | | " """""" " "" ##???####"## | | "# "" """ " #####"""" " | | ### " " """ | | ??### "" | | ????### | | ??????## | | ???????## | | ????????##" | | ?????????#""" """""" | | ????????##" ######""" | | ????????#"" ""##????#####""" | | ????????#""" """##?????????##""" | | ????????""" """##???????????#"""" | | ????????""" ""#???????????##"" | | ????????"" ########??####"""" | | ????????"" %##aaa####"""! | | ????????"" t =@ % """"!!!! | | ????????#"" % % %!]!!! | | ????????#"" % % %/!!** | | ?????????# ! | | ??????????" " "" | | ??????????"""" ""## ##""" " " " | | ???????????" ""#### ######""" """# | | ??????????? """"##??# #????###""""## | | ???????????"" """#??## ####???######## | | ???????????? ""##??#! " #??????????? | | ????????????? """#????#" !#??????????? | | ?????????????"" ??????#" "#??????????? | | ???????????????"" ???????#!!""!"#??????????? | | ???????????????? ???????########??????????? | | ??????????????????# ???????????????????????????? | | ?????????????????????????????????????????????????? | | ?????????????????????????????????????????????????? | | ?????????????????????????????????????????????????? | | ?????????????????????????????????????????????????? | | ?????????????????????????????????????????????????? | | ?????????????????????????????????????????????????? | | ?????????????????????????????????????????????????? | | ?????????????????????????????????????????????????? | | ?????????????????????????????????????????????????? | | ?????????????????????????????????????????????????? | +----------------------------------------------------+ Best States ------------- Heat Dissipation 42 Energy Generation 12 Energy Capacity 265 Matter Stores 300 Matter Capacity 300 Sight Range 16 Terrain Scan Density 10 Armor Coverage 450 Resistance: EM 20 Evasion (%) 40 Recoil Reduction 3 Offensive Hacking 10 Item Schematics ----------------- Huge Storage Unit | -10/Materials | Hacked Robot Schematics ------------------ None Fabricated ------------ Nothing Alien Tech Used ----------------- None Achievements -------------- None Challenges ------------ None Game ------ Seed AssaultMassStick Manual? 0 Play Time 00:23:20 Cumulative 291.1 hours Start 2023.03.23 @ 06:00:13 End 2023.03.23 @ 06:19:27 Sessions 1 Manual Loads 0 Difficulty Rogue Special Mode None Game No. 427 Rogue 404 Adventurer 4 Explorer 19 Win Type - Total 12 Types 10/0/0/2/0/0/0/0/0 Lore% 71 Gallery% 90 Achievement% 74 Wizard Run 0 Options --------- ASCII 0 Keyboard 1 Movement Numpad Keybinds 0 Fullscreen 2 Font 18/SmallcapsGlow Map View 76x50 Tactical HUD 1 Map Filters NONE Filters NONE Steam 1 RUN: 4664a9a8-e875-480f-929b-d9ed7e436b7c